fUST/lending_fUST_20241118
["ID","MTS","AMOUNT","RATE_DAILY","PERIOD"]
[342502323,1731936646108,-548.65,0.0001452,2]
[342502324,1731936646118,-2265.97,0.0001452,2]
[342502325,1731936646127,-977.6508885,0.00014593,2]
[342502326,1731936646136,-240.318712,0.00014693,2]
[342502327,1731936646145,-240.318712,0.00014693,2]
[342502328,1731936646155,-231.834136,0.00014693,2]
[342502329,1731936646165,-159.503684,0.00014693,2]
[342502330,1731936646175,-159.503684,0.00014693,2]
[342502331,1731936646184,-151.0,0.00014693,2]
[342502332,1731936646194,-500.62,0.00014693,2]
[342502333,1731936646203,-154.93,0.00014693,2]
[342502334,1731936646213,-659.04,0.00014693,2]
[342502335,1731936646233,-151.0,0.00014693,2]
[342502336,1731936646243,-500.0,0.00014693,2]
[342502337,1731936646253,-500.0,0.00014693,2]
[342502338,1731936646262,-500.0,0.00014693,2]
[342502339,1731936646271,-500.0,0.00014693,2]
[342502340,1731936646281,-151.0,0.00014693,2]
[342502341,1731936646290,-1222.75,0.00014693,2]
[342502342,1731936646299,-500.0,0.00014693,2]
[342502343,1731936646309,-1384.54,0.00014693,2]
[342502344,1731936646319,-599.24,0.00014693,2]
[342502345,1731936646328,-500.0,0.00014693,2]
[342502346,1731936646338,-892.73,0.00014693,2]
[342502347,1731936646348,-1043.25,0.00014693,2]
[342502348,1731936646358,-500.0,0.00014693,2]
[342502349,1731936646367,-1976.68,0.00014693,2]
[342502350,1731936646377,-439.00581,0.00014693,2]
[342502351,1731936646387,-439.00581,0.00014693,2]
[342502352,1731936646396,-151.0,0.00014693,2]
[342502353,1731936646406,-500.0,0.00014693,2]
[342502354,1731936646416,-641.19,0.00014693,2]
[342502355,1731936646426,-500.0,0.00014693,2]
[342502356,1731936646435,-218.854438,0.00014693,2]
[342502357,1731936646445,-218.854438,0.00014693,2]
[342502358,1731936646454,-151.0,0.00014693,2]
[342502359,1731936646464,-212.81296,0.00014693,2]
[342502360,1731936646479,-2385.0,0.00014765,2]
[342502361,1731936646488,-1110.0,0.00014765,2]
[342502362,1731936646497,-150.0,0.00014765,2]
[342502363,1731936646507,-500.0,0.00014794,2]
[342502364,1731936646517,-780.22,0.00014794,2]
[342502365,1731936646527,-500.0,0.00014794,2]
[342502366,1731936646536,-500.0,0.00014794,2]
[342502367,1731936646545,-500.0,0.00014794,2]
[342502368,1731936646554,-533.4,0.00014794,2]
[342502369,1731936646563,-500.0,0.00014794,2]
[342502370,1731936646573,-500.0,0.00014794,2]
[342502371,1731936646585,-500.0,0.00014794,2]
[342502372,1731936646594,-587.58,0.00014794,2]
[342502373,1731936646604,-618.84,0.00014794,2]
[342502374,1731936646614,-500.0,0.00014794,2]
[342502375,1731936646624,-500.0,0.00014794,2]
[342502376,1731936646633,-513.4,0.00014794,2]
[342502377,1731936646643,-1790.302756,0.00014794,2]
[342502378,1731936646652,-1790.302756,0.00014794,2]
[342502379,1731936646663,-151.0,0.00014794,2]
[342502380,1731936646673,-500.0,0.00014794,2]
[342502381,1731936646682,-500.0,0.00014794,2]
[342502382,1731936646692,-531.76,0.00014794,2]
[342502383,1731936646702,-500.0,0.00014794,2]
[342502384,1731936646712,-500.0,0.00014794,2]
[342502385,1731936646725,-578.42,0.00014794,2]
[342502386,1731936646735,-500.0,0.00014794,2]
[342502387,1731936646744,-627.22645712,0.00014794,2]
[342502388,1731936646753,-500.0,0.00014794,2]
[342502389,1731936646762,-500.0,0.00014794,2]
[342502390,1731936646771,-218.854438,0.00014794,2]
[342502391,1731936646781,-218.854438,0.00014794,2]
[342502392,1731936646790,-500.0,0.00014794,2]
[342502393,1731936646800,-151.0,0.00014794,2]
[342502394,1731936646810,-500.0,0.00014794,2]
[342502395,1731936646819,-500.0,0.00014794,2]
[342502396,1731936646828,-513.46,0.00014794,2]
[342502397,1731936646838,-682.14,0.00014794,2]
[342502398,1731936646848,-500.0,0.00014794,2]
[342502399,1731936646857,-500.0,0.00014794,2]
[342502400,1731936646868,-500.0,0.00014794,2]
[342502401,1731936646877,-500.0,0.00014794,2]
[342502402,1731936646886,-500.0,0.00014794,2]
[342502403,1731936646896,-500.0,0.00014794,2]
[342502404,1731936646905,-500.0,0.00014794,2]
[342502405,1731936646914,-1750.56,0.00014794,2]
[342502406,1731936646924,-500.0,0.00014794,2]
[342502407,1731936646933,-720.11,0.00014794,2]
[342502408,1731936646946,-520.19,0.00014794,2]
[342502409,1731936646956,-577.82379625,0.00014794,2]
[342502410,1731936646966,-500.0,0.00014794,2]
[342502411,1731936646978,-500.0,0.00014794,2]
[342502412,1731936646988,-500.0,0.00014794,2]
[342502413,1731936646997,-500.0,0.00014794,2]
[342502414,1731936647007,-2376.78,0.00014794,2]
[342502415,1731936647016,-500.0,0.00014794,2]
[342502416,1731936647025,-4426.07,0.00014794,2]
[342502417,1731936647034,-715.71,0.00014794,2]
[342502418,1731936647044,-617.97,0.00014794,2]
[342502419,1731936647053,-854.36,0.00014794,2]
[342502420,1731936647062,-1590.27,0.00014794,2]
[342502421,1731936647072,-644.35,0.00014794,2]
[342502422,1731936647082,-500.0,0.00014794,2]
[342502423,1731936647219,-500.0,0.00014794,2]
[342502424,1731936647258,-500.0,0.00014794,2]
[342502425,1731936647269,-1861.82,0.00014794,2]
[342502426,1731936647278,-628.73,0.00014794,2]
[342502427,1731936647288,-500.0,0.00014794,2]
[342502428,1731936647298,-304.22,0.00014794,2]
[342502429,1731936647308,-5120.21671124,0.00014794,2]
[342502430,1731936647329,-2079.48328876,0.00014794,2]
[342502431,1731936647339,-500.0,0.00014794,2]
[342502432,1731936647349,-508.07914546,0.00014794,2]
[342502433,1731936647359,-500.0,0.00014794,2]
[342502434,1731936647369,-7661.39,0.00014794,2]
[342502435,1731936647379,-912.86,0.00014794,2]
[342502436,1731936647389,-500.0,0.00014794,2]
[342502437,1731936647399,-500.0,0.00014794,2]
[342502438,1731936647408,-500.0,0.00014794,2]
[342502439,1731936647418,-1301.63,0.00014794,2]
[342502440,1731936647428,-423.63702075,0.00014794,2]
[342502441,1731936647438,-1210.35,0.00014794,2]
[342502442,1731936647448,-636.33,0.00014794,2]
[342502443,1731936647458,-548.65,0.00014794,2]
[342502444,1731936647467,-2265.97,0.00014794,2]
[342502445,1731936647479,-1000.0,0.00014852,2]
[342502446,1731936647488,-500.93243629,0.00014878,2]
[342502447,1731936647498,-500.0,0.00014878,2]
[342502448,1731936647507,-151.0,0.00014882,2]
[342502449,1731936647518,-159.503684,0.00014967,2]
[342502450,1731936647527,-159.503684,0.00014967,2]
[342502451,1731936647537,-151.0,0.00014967,2]
[342502452,1731936647546,-500.62,0.00014967,2]
[342502453,1731936647556,-659.04,0.00014967,2]
[342502454,1731936647566,-215.330703,0.00014967,2]
[342502455,1731936647581,-500.0,0.00014967,2]
[342502456,1731936647591,-500.0,0.00014967,2]
[342502457,1731936647601,-500.0,0.00014967,2]
[342502458,1731936647611,-500.0,0.00014967,2]
[342502459,1731936647621,-1222.75,0.00014967,2]
[342502460,1731936647631,-500.0,0.00014967,2]
[342502461,1731936647641,-1384.54,0.00014967,2]
[342502462,1731936647653,-599.24,0.00014967,2]
[342502463,1731936647663,-892.73,0.00014967,2]
[342502464,1731936647673,-1043.25,0.00014967,2]
[342502465,1731936647683,-217.09208365,0.00014967,2]
[342502466,1731936647692,-1976.68,0.00014967,2]
[342502467,1731936647702,-439.00581,0.00014967,2]
[342502468,1731936647712,-439.00581,0.00014967,2]
[342502469,1731936647724,-500.0,0.00014967,2]
[342502470,1731936647733,-641.19,0.00014967,2]
[342502471,1731936647745,-500.0,0.00014967,2]
[342502472,1731936647755,-330.0,0.00014968,2]
[342502473,1731936647765,-240.318712,0.00014968,2]
[342502474,1731936647774,-240.318712,0.00014968,2]
[342502475,1731936647784,-1790.302756,0.0001501,2]
[342502476,1731936647794,-1790.302756,0.0001501,2]
[342502477,1731936647804,-420.0,0.0001501,2]
[342502478,1731936647813,-420.0,0.00015067,2]
[342502479,1731936647824,-151.0,0.00015068,2]
[342502480,1731936647834,-151.0,0.00015068,2]
[342502481,1731936647843,-151.0,0.00015068,2]
[342502482,1731936647853,-152.699762,0.00015068,2]
[342502483,1731936647862,-151.0,0.00015068,2]
[342502484,1731936647872,-279.918308,0.00015068,2]
[342502485,1731936647882,-500.0,0.00015068,2]
[342502486,1731936647892,-780.22,0.00015068,2]
[342502487,1731936647902,-500.0,0.00015068,2]
[342502488,1731936647911,-500.0,0.00015068,2]
[342502489,1731936647921,-229.98625672,0.00015068,2]
[342502490,1731936647931,-533.4,0.00015068,2]
[342502491,1731936647941,-500.0,0.00015068,2]
[342502492,1731936647950,-500.0,0.00015068,2]
[342502493,1731936647960,-500.0,0.00015068,2]
[342502494,1731936647971,-618.84,0.00015068,2]
[342502495,1731936647980,-500.0,0.00015068,2]
[342502496,1731936647990,-500.0,0.00015068,2]
[342502497,1731936648000,-513.4,0.00015068,2]
[342502498,1731936648010,-151.0,0.00015068,2]
[342502499,1731936648019,-500.0,0.00015068,2]
[342502500,1731936648029,-500.0,0.00015068,2]
[342502501,1731936648040,-531.76,0.00015068,2]
[342502502,1731936648050,-500.0,0.00015068,2]
[342502503,1731936648061,-500.0,0.00015068,2]
[342502504,1731936648071,-578.42,0.00015068,2]
[342502505,1731936648081,-500.0,0.00015068,2]
[342502506,1731936648092,-500.0,0.00015068,2]
[342502507,1731936648101,-500.0,0.00015068,2]
[342502508,1731936648111,-218.854438,0.00015068,2]
[342502509,1731936648120,-218.854438,0.00015068,2]
[342502510,1731936648131,-425.3302561,0.00015068,2]
[342502511,1731936648142,-151.0,0.00015068,2]
[342502512,1731936648152,-500.0,0.00015068,2]
[342502513,1731936648161,-500.0,0.00015068,2]
[342502514,1731936648171,-513.46,0.00015068,2]
[342502515,1731936648181,-682.14,0.00015068,2]
[342502516,1731936648190,-500.0,0.00015068,2]
[342502517,1731936648200,-500.0,0.00015068,2]
[342502518,1731936648210,-500.0,0.00015068,2]
[342502519,1731936648223,-500.0,0.00015068,2]
[342502520,1731936648233,-517.62,0.00015068,2]
[342502521,1731936648242,-500.0,0.00015068,2]
[342502522,1731936648252,-500.0,0.00015068,2]
[342502523,1731936648262,-1750.56,0.00015068,2]
[342502524,1731936648272,-180.58153723,0.00015068,2]
[342502525,1731936648282,-720.11,0.00015068,2]
[342502526,1731936648291,-520.19,0.00015068,2]
[342502527,1731936648301,-500.0,0.00015068,2]
[342502528,1731936648311,-500.0,0.00015068,2]
[342502529,1731936648322,-288.14,0.00015068,2]
[342502530,1731936648332,-500.0,0.00015068,2]
[342502531,1731936648342,-2376.78,0.00015068,2]
[342502532,1731936648353,-500.0,0.00015068,2]
[342502533,1731936648363,-4426.07,0.00015068,2]
[342502534,1731936648372,-715.71,0.00015068,2]
[342502535,1731936648382,-617.97,0.00015068,2]
[342502536,1731936648392,-854.36,0.00015068,2]
[342502537,1731936648401,-1590.27,0.00015068,2]
[342502538,1731936648411,-644.35,0.00015068,2]
[342502539,1731936648421,-500.0,0.00015068,2]
[342502540,1731936648431,-267.08,0.00015068,2]
[342502541,1731936648441,-500.0,0.00015068,2]
[342502542,1731936648451,-1861.82,0.00015068,2]
[342502543,1731936648460,-628.73,0.00015068,2]
[342502544,1731936648473,-500.0,0.00015068,2]
[342502545,1731936648483,-7199.7,0.00015068,2]
[342502546,1731936648493,-500.0,0.00015068,2]
[342502547,1731936648502,-500.0,0.00015068,2]
[342502548,1731936648512,-7661.39,0.00015068,2]
[342502549,1731936648522,-912.86,0.00015068,2]
[342502550,1731936648532,-500.0,0.00015068,2]
[342502551,1731936648542,-500.0,0.00015068,2]
[342502552,1731936648552,-500.0,0.00015068,2]
[342502553,1731936648563,-1301.63,0.00015068,2]
[342502554,1731936648577,-1210.35,0.00015068,2]
[342502555,1731936648587,-636.33,0.00015068,2]
[342502556,1731936648597,-548.65,0.00015068,2]
[342502557,1731936648607,-2265.97,0.00015068,2]
[342502558,1731936648617,-4862.591784,0.00015068,2]
[342502559,1731936648627,-159.503684,0.00015083,2]
[342502560,1731936648638,-159.503684,0.00015083,2]
[342502561,1731936648648,-500.0,0.00015164,2]
[342502562,1731936648663,-151.0,0.000152,2]
[342502563,1731936648673,-240.318712,0.00015241,2]
[342502564,1731936648682,-240.318712,0.00015241,2]
[342502565,1731936648691,-151.0,0.00015241,2]
[342502566,1731936648701,-500.62,0.00015241,2]
[342502567,1731936648710,-659.04,0.00015241,2]
[342502568,1731936648720,-500.0,0.00015241,2]
[342502569,1731936648734,-500.0,0.00015241,2]
[342502570,1731936648744,-500.0,0.00015241,2]
[342502571,1731936648753,-500.0,0.00015241,2]
[342502572,1731936648763,-1222.75,0.00015241,2]
[342502573,1731936648773,-1384.54,0.00015241,2]
[342502574,1731936648782,-599.24,0.00015241,2]
[342502575,1731936648792,-892.73,0.00015241,2]
[342502576,1731936648803,-1043.25,0.00015241,2]
[342502577,1731936648813,-1976.68,0.00015241,2]
[342502578,1731936648823,-439.00581,0.00015241,2]
[342502579,1731936648833,-439.00581,0.00015241,2]
[342502580,1731936648842,-1790.302756,0.00015241,2]
[342502581,1731936648852,-1790.302756,0.00015241,2]
[342502582,1731936648863,-500.0,0.00015241,2]
[342502583,1731936648872,-641.19,0.00015241,2]
[342502584,1731936648882,-500.0,0.00015241,2]
[342502585,1731936648892,-178.85086202,0.00015341,2]
[342502586,1731936648902,-151.20248783,0.00015341,2]
[342502587,1731936648912,-151.0,0.00015342,2]
[342502588,1731936648922,-151.0,0.00015342,2]
[342502589,1731936648931,-500.0,0.00015342,2]
[342502590,1731936648942,-780.22,0.00015342,2]
[342502591,1731936648951,-500.0,0.00015342,2]
[342502592,1731936648960,-159.503684,0.00015342,2]
[342502593,1731936648970,-159.503684,0.00015342,2]
[342502594,1731936648986,-500.0,0.00015342,2]
[342502595,1731936648997,-533.4,0.00015342,2]
[342502596,1731936649007,-500.0,0.00015342,2]
[342502597,1731936649017,-500.0,0.00015342,2]
[342502598,1731936649026,-457.78555194,0.00015342,2]
[342502599,1731936649037,-618.84,0.00015342,2]
[342502600,1731936649046,-500.0,0.00015342,2]
[342502601,1731936649056,-500.0,0.00015342,2]
[342502602,1731936649066,-513.4,0.00015342,2]
[342502603,1731936649075,-151.0,0.00015342,2]
[342502604,1731936649086,-500.0,0.00015342,2]
[342502605,1731936649096,-500.0,0.00015342,2]
[342502606,1731936649105,-531.76,0.00015342,2]
[342502607,1731936649115,-500.0,0.00015342,2]
[342502608,1731936649125,-500.0,0.00015342,2]
[342502609,1731936649135,-578.42,0.00015342,2]
[342502610,1731936649144,-500.0,0.00015342,2]
[342502611,1731936649154,-500.0,0.00015342,2]
[342502612,1731936649163,-500.0,0.00015342,2]
[342502613,1731936649174,-218.854438,0.00015342,2]
[342502614,1731936649184,-218.854438,0.00015342,2]
[342502615,1731936649193,-151.0,0.00015342,2]
[342502616,1731936649203,-500.0,0.00015342,2]
[342502617,1731936649213,-500.0,0.00015342,2]
[342502618,1731936649224,-513.46,0.00015342,2]
[342502619,1731936649234,-682.14,0.00015342,2]
[342502620,1731936649244,-500.0,0.00015342,2]
[342502621,1731936649254,-500.0,0.00015342,2]
[342502622,1731936649263,-226.64,0.00015342,2]
[342502623,1731936649273,-500.0,0.00015342,2]
[342502624,1731936649283,-500.0,0.00015342,2]
[342502625,1731936649292,-500.0,0.00015342,2]
[342502626,1731936649302,-1750.56,0.00015342,2]
[342502627,1731936649311,-720.11,0.00015342,2]
[342502628,1731936649320,-520.19,0.00015342,2]
[342502629,1731936649330,-500.0,0.00015342,2]
[342502630,1731936649340,-500.0,0.00015342,2]
[342502631,1731936649350,-500.0,0.00015342,2]
[342502632,1731936649359,-2376.78,0.00015342,2]
[342502633,1731936649369,-500.0,0.00015342,2]
[342502634,1731936649379,-4426.07,0.00015342,2]
[342502635,1731936649389,-715.71,0.00015342,2]
[342502636,1731936649399,-617.97,0.00015342,2]
[342502637,1731936649409,-854.36,0.00015342,2]
[342502638,1731936649418,-1590.27,0.00015342,2]
[342502639,1731936649428,-644.35,0.00015342,2]
[342502640,1731936649438,-500.0,0.00015342,2]
[342502641,1731936649448,-500.0,0.00015342,2]
[342502642,1731936649458,-1861.82,0.00015342,2]
[342502643,1731936649468,-628.73,0.00015342,2]
[342502644,1731936649481,-500.0,0.00015342,2]
[342502645,1731936649491,-7199.7,0.00015342,2]
[342502646,1731936649503,-500.0,0.00015342,2]
[342502647,1731936649512,-500.0,0.00015342,2]
[342502648,1731936649522,-7661.39,0.00015342,2]
[342502649,1731936649532,-912.86,0.00015342,2]
[342502650,1731936649542,-500.0,0.00015342,2]
[342502651,1731936649552,-500.0,0.00015342,2]
[342502652,1731936649562,-500.0,0.00015342,2]
[342502653,1731936649574,-1301.63,0.00015342,2]
[342502654,1731936649585,-1210.35,0.00015342,2]
[342502655,1731936649595,-636.33,0.00015342,2]
[342502656,1731936649606,-548.65,0.00015342,2]
[342502657,1731936649617,-2265.97,0.00015342,2]
[342502658,1731936649628,-500.0,0.00015342,2]
[342502659,1731936649638,-150.112233,0.000154,2]
[342502660,1731936649649,-300.24928576,0.00015431,2]
[342502661,1731936649659,-150.47511878,0.00015431,2]
[342502662,1731936649670,-150.14,0.00015431,2]
[342502663,1731936649680,-154.48753092,0.00015431,2]
[342502664,1731936649690,-150.14,0.00015431,2]
[342502665,1731936649700,-150.14,0.00015431,2]
[342502666,1731936649710,-150.14,0.00015431,2]
[342502667,1731936649720,-150.14,0.00015431,2]
[342502668,1731936649732,-150.14,0.00015431,2]
[342502669,1731936649742,-300.20875358,0.00015431,2]
[342502670,1731936649791,-267.800954,0.00015432,2]
[342502671,1731936649802,-544.31278193,0.00015475,2]
[342502672,1731936649812,-240.318712,0.00015515,2]
[342502673,1731936649822,-240.318712,0.00015515,2]
[342502674,1731936649831,-151.0,0.00015515,2]
[342502675,1731936649839,-500.62,0.00015515,2]
[342502676,1731936649849,-659.04,0.00015515,2]
[342502677,1731936649858,-500.0,0.00015515,2]
[342502678,1731936649868,-577.45,0.00015515,2]
[342502679,1731936649877,-500.0,0.00015515,2]
[342502680,1731936649887,-500.0,0.00015515,2]
[342502681,1731936649896,-1222.75,0.00015515,2]
[342502682,1731936649906,-1384.54,0.00015515,2]
[342502683,1731936649915,-599.24,0.00015515,2]
[342502684,1731936649925,-892.73,0.00015515,2]
[342502685,1731936649934,-1043.25,0.00015515,2]
[342502686,1731936649944,-1976.68,0.00015515,2]
[342502687,1731936649953,-439.00581,0.00015515,2]
[342502688,1731936649963,-439.00581,0.00015515,2]
[342502689,1731936649974,-1790.302756,0.00015515,2]
[342502690,1731936649983,-1790.302756,0.00015515,2]
[342502691,1731936649993,-500.0,0.00015515,2]
[342502692,1731936650003,-641.19,0.00015515,2]
[342502693,1731936650012,-500.0,0.00015515,2]
[342502694,1731936650021,-150.112233,0.000156,2]
[342502695,1731936650031,-150.112233,0.000156,2]
[342502696,1731936650041,-151.0,0.00015615,2]
[342502697,1731936650050,-218.854438,0.00015615,2]
[342502698,1731936650060,-218.854438,0.00015615,2]
[342502699,1731936650069,-151.0,0.00015615,2]
[342502700,1731936650078,-151.0,0.00015616,2]
[342502701,1731936650087,-151.0,0.00015616,2]
[342502702,1731936650096,-500.0,0.00015616,2]
[342502703,1731936650105,-780.22,0.00015616,2]
[342502704,1731936650114,-500.0,0.00015616,2]
[342502705,1731936650124,-159.503684,0.00015616,2]
[342502706,1731936650133,-159.503684,0.00015616,2]
[342502707,1731936650142,-500.0,0.00015616,2]
[342502708,1731936650154,-533.4,0.00015616,2]
[342502709,1731936650163,-500.0,0.00015616,2]
[342502710,1731936650173,-500.0,0.00015616,2]
[342502711,1731936650182,-618.84,0.00015616,2]
[342502712,1731936650191,-478.7217868,0.00015616,2]
[342502713,1731936650201,-500.0,0.00015616,2]
[342502714,1731936650211,-513.4,0.00015616,2]
[342502715,1731936650220,-1790.302756,0.00015616,2]
[342502716,1731936650231,-1790.302756,0.00015616,2]
[342502717,1731936650240,-227.621014,0.00015616,2]
[342502718,1731936650251,-500.0,0.00015616,2]
[342502719,1731936650260,-500.0,0.00015616,2]
[342502720,1731936650269,-531.76,0.00015616,2]
[342502721,1731936650278,-500.0,0.00015616,2]
[342502722,1731936650287,-500.0,0.00015616,2]
[342502723,1731936650296,-578.42,0.00015616,2]
[342502724,1731936650306,-500.0,0.00015616,2]
[342502725,1731936650315,-500.0,0.00015616,2]
[342502726,1731936650324,-500.0,0.00015616,2]
[342502727,1731936650334,-500.0,0.00015616,2]
[342502728,1731936650343,-500.0,0.00015616,2]
[342502729,1731936650351,-513.46,0.00015616,2]
[342502730,1731936650361,-682.14,0.00015616,2]
[342502731,1731936650370,-500.0,0.00015616,2]
[342502732,1731936650379,-500.0,0.00015616,2]
[342502733,1731936650388,-500.0,0.00015616,2]
[342502734,1731936650396,-500.0,0.00015616,2]
[342502735,1731936650405,-500.0,0.00015616,2]
[342502736,1731936650414,-1750.56,0.00015616,2]
[342502737,1731936650423,-720.11,0.00015616,2]
[342502738,1731936650433,-520.19,0.00015616,2]
[342502739,1731936650443,-500.0,0.00015616,2]
[342502740,1731936650452,-500.0,0.00015616,2]
[342502741,1731936650461,-500.0,0.00015616,2]
[342502742,1731936650474,-2376.78,0.00015616,2]
[342502743,1731936650483,-500.0,0.00015616,2]
[342502744,1731936650493,-4426.07,0.00015616,2]
[342502745,1731936650502,-715.71,0.00015616,2]
[342502746,1731936650512,-617.97,0.00015616,2]
[342502747,1731936650521,-854.36,0.00015616,2]
[342502748,1731936650530,-1590.27,0.00015616,2]
[342502749,1731936650540,-644.35,0.00015616,2]
[342502750,1731936650549,-500.0,0.00015616,2]
[342502751,1731936650559,-500.0,0.00015616,2]
[342502752,1731936650569,-1861.82,0.00015616,2]
[342502753,1731936650582,-628.73,0.00015616,2]
[342502754,1731936650592,-532.26604147,0.00015616,2]
[342502755,1731936650601,-7199.7,0.00015616,2]
[342502756,1731936650612,-476.05147133,0.00015616,2]
[342502757,1731936650621,-500.0,0.00015616,2]
[342502758,1731936650631,-7661.39,0.00015616,2]
[342502759,1731936650640,-912.86,0.00015616,2]
[342502760,1731936650651,-500.0,0.00015616,2]
[342502761,1731936650660,-500.0,0.00015616,2]
[342502762,1731936650671,-500.0,0.00015616,2]
[342502763,1731936650680,-1301.63,0.00015616,2]
[342502764,1731936650689,-1210.35,0.00015616,2]
[342502765,1731936650699,-636.33,0.00015616,2]
[342502766,1731936650709,-548.65,0.00015616,2]
[342502767,1731936650718,-150.14,0.00015705,2]
[342502768,1731936650730,-150.14,0.00015705,2]
[342502769,1731936650739,-150.14,0.00015705,2]
[342502770,1731936650748,-150.14,0.00015705,2]
[342502771,1731936650758,-150.14,0.00015705,2]
[342502772,1731936650767,-240.318712,0.00015789,2]
[342502773,1731936650777,-240.318712,0.00015789,2]
[342502774,1731936650786,-151.0,0.00015789,2]
[342502775,1731936650795,-500.62,0.00015789,2]
[342502776,1731936650804,-659.04,0.00015789,2]
[342502777,1731936650813,-500.0,0.00015789,2]
[342502778,1731936650823,-500.0,0.00015789,2]
[342502779,1731936650832,-500.0,0.00015789,2]
[342502780,1731936650842,-1222.75,0.00015789,2]
[342502781,1731936650851,-1384.54,0.00015789,2]
[342502782,1731936650860,-599.24,0.00015789,2]
[342502783,1731936650869,-892.73,0.00015789,2]
[342502784,1731936650878,-1043.25,0.00015789,2]
[342502785,1731936650887,-1976.68,0.00015789,2]
[342502786,1731936650897,-439.00581,0.00015789,2]
[342502787,1731936650906,-439.00581,0.00015789,2]
[342502788,1731936650915,-500.0,0.00015789,2]
[342502789,1731936650924,-641.19,0.00015789,2]
[342502790,1731936650933,-500.0,0.00015789,2]
[342502791,1731936650942,-218.854438,0.00015789,2]
[342502792,1731936650951,-218.854438,0.00015789,2]
[342502793,1731936650960,-202.36708,0.00015789,2]
[342502794,1731936650971,-150.112233,0.000158,2]
[342502795,1731936650981,-150.112233,0.000158,2]
[342502796,1731936650990,-150.112233,0.000158,2]
[342502797,1731936651000,-150.112233,0.000158,2]
[342502798,1731936651009,-152.188017,0.0001589,2]
[342502799,1731936651019,-153.934444,0.0001589,2]
[342502800,1731936651029,-274.114624,0.0001589,2]
[342502801,1731936651039,-500.0,0.0001589,2]
[342502802,1731936651048,-780.22,0.0001589,2]
[342502803,1731936651058,-500.0,0.0001589,2]
[342502804,1731936651067,-159.503684,0.0001589,2]
[342502805,1731936651077,-159.503684,0.0001589,2]
[342502806,1731936651086,-500.0,0.0001589,2]
[342502807,1731936651096,-533.4,0.0001589,2]
[342502808,1731936651106,-500.0,0.0001589,2]
[342502809,1731936651115,-500.0,0.0001589,2]
[342502810,1731936651124,-618.84,0.0001589,2]
[342502811,1731936651134,-500.0,0.0001589,2]
[342502812,1731936651143,-513.4,0.0001589,2]
[342502813,1731936651152,-500.0,0.0001589,2]
[342502814,1731936651162,-500.0,0.0001589,2]
[342502815,1731936651171,-531.76,0.0001589,2]
[342502816,1731936651180,-500.0,0.0001589,2]
[342502817,1731936651189,-500.0,0.0001589,2]
[342502818,1731936651197,-578.42,0.0001589,2]
[342502819,1731936651206,-500.0,0.0001589,2]
[342502820,1731936651216,-500.0,0.0001589,2]
[342502821,1731936651227,-500.0,0.0001589,2]
[342502822,1731936651237,-500.0,0.0001589,2]